{"text_format":"1","workbook":"xlsx","n_sheets":97,"sheets":["Plan","List1","List20","RekonstrukceKotelnyMS","OpravaPlotuZŠ","RekonstrukceSportovnihoHriste","ProjektOdborneUcebny","StudieVyuzitiPalarny","ÚpravaTur.StezkyOcni","RekonstrukcePropustkuLibotin","OpravaPovrchuMistniKomunikace","OdstraneniChodnikuZaulici","Auto.SystemPark.Horecka","Prod.ChodnikuBariny","StetovanaCesHBasta","StetovanaCesBelohorska","OdkanalizovaniOcni","OdkanalizovaniDolni","ZatrubneniVodotece","OpravaStrechyZSStramberk","AutobusoveZastavky","OpravaChodnikuZOcNaTrub","sanaceVrchniCesta","AutobusZast.Bariny","VodovodKanalizaceLibotinII","OpravaKomunikaceNadrazni","CelkovaOpravaVezeTruba","Rozpracovanost","ZavlazovaniPrijezdovkaFot.Hris.","RevitalizaceZahradyMSZaulici","RevitalizaceZahradyMSBariny","RekonstrukceArealuKoupaliste","NoveSatnyZS","VstupZSSpojovaciChodba","OpravaPlotuZahradaZS","OpravaRozsireniHristePiskovna","SportovisteZahradaZS","RekonstrukceSport.HristeZS","OdbornaUcebnaZS","UpravaProstorRadnice","ZazemiTech.SluzebPiskovna","RekonstrukceStaraSkola","ObjektPalarna","VyuzitiRekonstrukceSkoly","RekonstrukceSuterenuTelecvicny","RekonstrukceDomuSluzeb","RekonstrukceMat.SkolyZaulici","RekonstrukceTech.Sluzeb","RekonstrukcePosty","KomunikaceKrizovatkaPalarna","RekonstrukceChodnikuNadrazni","ZastavbovaStudieParNovojicinska","ParkovaciPlochyProNavstevniky","OpravaProstorHasicarna","OpravaMostuBariny","SvetelnyPrechodBariny","BezpecnostChodcuKozina","PrutahMestem","StetovanaCestaBasta","KomunikaceHornychovice","OpravaChod.Kom.Drazne","VodovodKanalizaceLibotin","KamerovySystemNamestiZS","CelkovaRekonstrukceOsvetleni","VymenaMobiliareMesta","RevitalizaceNarodnihoSadu","RekonstrukceHrbitova","VenkovniNasvetleniTruby","RekonstrukceHistorickehoOsv.","OdkanalizovaniHraduTruba","RekonstrukcePristupuNaTrubu","UpravaProstoruNamesti","ElektronickaRezervaceTelocvicny","KomplexniPrezentaceSpolku","PravidlaRozdelovaniPrispevku","NickNackKelimky","KotlikoveDotace","InteraktivniMapa","VybudovaniKomposteru","EvidenceOdpadovychNadob","EstetizaceMistNaTridenyOdpad","ModerniPrezentace","PropagacniMaterialy","StrankyMICTrubyMuzeaKnihovny","BankomatNamesti","PanelyHorecka","PlanAkci","VyuzitiInterPrvku","ZajisteniExpo","PorizovaniVidei","PasportizaceMobiliare","VzhledDokumentu","FormPortalObcana","NovyWeb","OnlineSmlouvy","WebAplikace","ElektronickeHlasovani"],"not_rendered":{"charts":0,"images":0,"macros":1,"external_links":0,"defined_names":1,"comments":0,"pivot_tables":0},"unopened":[],"bounds":{"document_bytes":16777216,"sheet_cells":100000,"rows_first":2000,"rows_last":500,"rows_between":2000,"halvings":0,"cell_chars":16384,"cell_head_chars":4096},"cells_cut":0,"cells_raw":0,"read":"whole","date_system":"1900"}

{"sheet":"Plan","index":0,"n_rows":69,"n_cols":13,"rows_kept":69,"cut":false,"hidden":false,"merged":[[17,0,68,0],[21,1,34,1],[59,1,62,1],[63,1,68,1],[35,1,48,1],[17,1,20,1],[49,1,58,1],[0,0,0,12],[15,12,16,12],[13,0,13,1],[2,11,3,11],[11,12,12,12],[2,12,3,12],[11,0,12,2],[15,11,16,11],[2,7,2,10],[15,7,15,10],[2,0,3,2],[4,0,9,1],[11,7,11,10],[11,11,12,11],[15,0,16,2]]}
["Akční plán města Štramberka pro období 2024-2026"]
[]
["Kultura a cestovní ruch",null,null,null,null,null,null,"Orientační náklady v tis.Kč",null,null,null,"Externí spolufinancování - zdroj","Detaily"]
[null,null,null,"Garant ","Termín zahájení","Termín ukončení","Stav rozpracovanosti",2023,2024,2025,2026]
["Kultura a cestovní ruch",null,"Modernizace Muzea ZB - projekt, realizace","starosta ","2024","2026","Záměr",null,null,null,null,null,"ZDE"]
[null,null,"Participativní rozpočet","starosta ","2024","2026","V realizaci",null,150,250,null,null,"ZDE"]
[null,null,"Regulační plán výstavby na území města + spolupráce s architektem","starosta ","2025","2026","Záměr",null,null,null,null,null,"ZDE"]
[null,null,"Koncepce/strategie cestovního ruchu","starosta ","2025","2026","Záměr",null,null,null,null,null,"ZDE"]
[null,null,"Vybudování chodníku (stezky) z parkoviště u Očního na Trúbu","starosta ","2025","2026","Záměr",null,null,null,null,null,"ZDE"]
[null,null,"Koncepce navigačního systému města a propagace města","starosta","2025","2026","Záměr",null,null,null,null,null,"ZDE"]
[]
["Sociální oblast",null,null,null,null,null,null,"Orientační náklady v tis.Kč",null,null,null,"Externí spolufinancování - zdroj","Detaily"]
[null,null,null,"Garant ","Termín zahájení","Termín ukončení","Stav rozpracovanosti",2023,2024,2025,2026]
[null,null,"Revize a zlepšení služeb pro seniory ve městě a DPS  - zřízení pečovatelské služby, terénní péče","starosta","2024","2026","Záměr",null,null,null,null,null,"ZDE"]
[]
["Investice a opravy",null,null,null,null,null,null,"Orientační náklady v tis.Kč",null,null,null,"Externí spolufinancování - zdroj","Detaily"]
[null,null,null,"Garant ","Termín zahájení","Termín ukončení","Stav rozpracovanosti",2023,2024,2025,2026]
["Investice a opravy","Trúba","Odkanalizování areálu hradu Trúba - kanalizační přípojka","místostarosta","10/2024","12/2024","Projektová dokumentace",null,3000,null,null,null,"ZDE"]
[null,null,"Nové venkovní nasvětlení hradu Trúba + Stará věž","místostarosta","2026","2026","Projektová dokumentace",null,null,null,null,null,"ZDE"]
[null,null,"Údržbové prác na  chatě. Dr.Hrstky ( okna, dveře a střecha)","místostarosta","04/2024","06/2024","Záměr",null,500,null,null,"MSK","ZDE"]
[null,null,"Údržba a zlepšení okolí kolem schodů na Trúbu","místostarosta",null,null,"Záměr",null,null,null,null,null,"ZDE"]
[null,"veřejné prostranství","Studie revitalizace náměstí ","místostarosta",null,null,"Záměr",null,null,null,null,null,"ZDE"]
[null,null,"Úprava prostor okolí Staré školy, plocha č.2","místostarosta","03/2024","09/2024","V realizaci",null,1200,null,null,"MAS Lašsko","ZDE"]
[null,null,"Úprava prostor okolí Staré školy, plocha č.1 a č.3","místostarosta","2026","2026","Studie",991,null,null,null,null,"ZDE"]
[null,null,"Rekonstrukce veřejného osvětlení - snížení energetické náročnosti II.etapa","místostarosta","2025","2025","Záměr",965,null,null,null,null,"ZDE"]
[null,null,"Vodovod a kanalizace v lokalitě Libotín - II. etapa - dokončení","místostarosta","20xx","20xx","Projektová dokumentace",null,null,null,8000,null,"ZDE"]
[null,null,"Odkanalizování lokality ulice K Očnímu","místostarosta","2026","2026","Projektová dokumentace",null,null,null,9000,null,"ZDE"]
[null,null,"Odkanalizování lokality u fotbalového hřiště","místostarosta","2025","2025","Projektová dokumentace",null,null,4000,null,null,"ZDE"]
[null,null,"Regulační plán výstavby na území města + spolupráce s architektem","starosta","2024","2025","Záměr"]
[null,null,"Zástavbová studie ul. Novojičínská","místostarosta","02/2024","05/2024","V realizaci",null,200,null,null,null,"ZDE"]
[null,null,"Kanalizační přípojka pro objekt restaurace na koupališti","místostarosta","3/2024","5/2024","Projektová dokumentace",null,350]
[null,null,"Sanace svahu na Vrchní cestě","místostarosta","4/2024","6/2024","Projektová dokumentace"]
[null,null,"Pasportizace mobiliáře","starosta","2025","2026","Záměr"]
[null,null,"Estetizace míst pro odpady","starosta","2024","2026","Projektová dokumentace"]
[null,null,"Národní sad","místostarosta","2026","2026","Projektová dokumentace",null,null,null,null,null,"ZDE"]
[null,"komunikace, doprava a parkování","Dopravně stavební úpravy ul.Zauličí","místostarosta","2025","2025","Projektová dokumentace",null,null,10000,null,null,"ZDE"]
[null,null,"Zvýšení bezpečnosti chodců na komunikaci „Polnička“ - Kozina","místostarosta","202x","202x","Projektová dokumentace",null,null,null,3360,null,"ZDE"]
[null,null,"Rekonstrukce chodníku na ulici Nádražní včetně řešení železničního přejezdu","místostarosta",null,null,"Studie",null,null,null,1000,null,"ZDE"]
[null,null,"Úprava křižovatky Pod Palárnou vybudování přechodů pro chodce","místostarosta","03/2025","06/2025","Projektová dokumentace",null,null,2000,null,"MAS Lašsko","ZDE"]
[null,null,"Oprava povrchu místní komunikace v průtahu městem","místostarosta","10/2024","11/2024","Projektová dokumentace",null,8800,null,null,"MMR","ZDE"]
[null,null,"Rekonstrukce propustku na Libotíně (točna bus)","místostarosta","2025","2025","Projektová dokumentace",null,null,2500,null,null,"ZDE"]
[null,null,"Zvýšení bezpečnosti a zklidnění dopravy na ul. K Očnímu (vybudování chodníkového tělesa na ul.K Oční od ul. Dolní Bašta po hranici katastru s Kopřivnicí) - studie ","místostarosta","03/2024","06/2024","Záměr",null,55,null,null,null,"ZDE"]
[null,null,"Rozšíření parkovacích ploch pro návštěvníky - lokalita Oční (vyhotovení PD)","místostarosta","2025","2025","Záměr",null,null,null,null,null,"ZDE"]
[null,null,"Průjezdové radary (zvýšení bezpečnosti)","starosta","2024","2025","Záměr",null,null,null,null,null,"ZDE"]
[null,null,"Prodloužení chodníkového tělesa ul.Závišická k odbočce k ČOV","místostarosta","2025","2025","Projektová dokumentace",null,null,null,700,null,"ZDE"]
[null,null,"Zpracování studie k  vybudování chodníkového tělesa na ul.Kozina k MŠ Bařiny","místostarosta","04/2024","11/2024","Záměr",null,150,null,null,null,"ZDE"]
[null,null,"Pasportizace dopravního značení a komunikací","místostarosta","2025","2025","Záměr",null,null,null,null,null,"ZDE"]
[null,null,"Zpracování  PD pro vybudování nové lávky přes koleje (vlakové nádraží Štramberk)","místostarosta","2025","2026","Záměr",null,null,2000,null,null,"ZDE"]
[null,null,"Záchytné parkoviště na Novojičínské","místostarosta","2025","2026","Záměr",null,null,null,null,null,"ZDE"]
[null,"domy v majetku města","Rekonstrukce budovy MŠ Bařiny + interier","místostarosta","01/2024","07/2024","V realizaci",null,24000,null,null,"IROP","ZDE"]
[null,null,"Oprava střechy, krovu a říms ZŠ Štramberk","místostarosta","5/2024","9/2024","Zadávací řízení",null,25000,null,null,"MSK","ZDE"]
[null,null,"Úprava prostor radnice - místnost starosty, místostarosty a sekretariátu","místostarosta","07/2024","8/2024","Zadávací řízení",null,null,null,null,null,"ZDE"]
[null,null,"Úprava (snížení podlahy) prostor garáže hasičárna","místostarosta","07/2024","12/2024","Projektová dokumentace",null,2200,null,null,"MSK","ZDE"]
[null,null,"Stavebně technický průzkum budovy Domu služeb","místostarosta","2024","2024","Záměr",null,null,null,null,null,"ZDE"]
[null,null,"Zpracování PD pro rekonstrukci budovy na koupališti a koncepční řešení areálu","místostarosta","20xx","20xx","Záměr",null,null,null,null,null,"ZDE"]
[null,null,"Bytové domy Dražné č.p.268 a č.p.269  (budoucnost)","starosta","2024","2024","Záměr",null,null,null,null,null,"ZDE"]
[null,null,"ZŠ Štramberk, rekonstrukce kotelny (výměna plynových kotlů), snižování energrtické náročnosti budovy","místostarosta","2025","2025","Projektová dokumentace",null,null,3200,null,null,"ZDE"]
[null,null,"ZŠ Štramberk, výměna oken a svítidel (snižování energrtické náročnosti budovy)","místostarosta","2026","2026","Záměr",null,null,null,null,null,"ZDE"]
[null,null,"Stavba zázemí TS včetně okolí Sběrného dvora","místostarosta",null,null,"Projektová dokumentace",null,null,null,null,null,"ZDE"]
[null,"školství, sport a volnočasové aktivity","Vybudování pumptrackové dráhy","starosta","2026","2026","Záměr",null,null,null,2500,null,"ZDE"]
[null,null,"Vybudování beach voleybalového kurtu (koupaliště Libotín)","starosta","02/2026","05/2026","Záměr",null,null,600,null,null,"ZDE"]
[null,null,"Modernizace dětských hřišť ( Bařiny, Dražné, Pískovna a Libotín)","starosta","2024","2026","Záměr"]
[null,null,"Pasportizace dětských hřišť","starosta","2025",2026,"Záměr",null,null,null,null,null,"ZDE"]
[null,"Ostatní","Kamerový systém ve městě - studie ","starosta",2025,2026,"Záměr",null,null,null,null,null,"ZDE"]
[null,null,null,null,null,null,null,null,null,null,null,null,"ZDE"]
[null,null,null,null,null,null,null,null,null,null,null,null,"ZDE"]
[null,null,null,null,null,null,null,null,null,null,null,null,"ZDE"]
[null,null,null,null,null,null,null,null,null,null,null,null,"ZDE"]
[null,null,null,null,null,null,null,null,null,null,null,null,"ZDE"]

{"sheet":"List1","index":1,"n_rows":0,"n_cols":0,"rows_kept":0,"cut":false,"hidden":false,"merged":[]}

{"sheet":"List20","index":2,"n_rows":0,"n_cols":0,"rows_kept":0,"cut":false,"hidden":true,"merged":[]}

{"sheet":"RekonstrukceKotelnyMS","index":3,"n_rows":4,"n_cols":8,"rows_kept":4,"cut":false,"hidden":true,"merged":[[0,0,0,7]]}
[{"$f":"UPPER(\"rekonstrukce kotelny v budově MŠ Zauličí včetně rozvodů\")","v":"REKONSTRUKCE KOTELNY V BUDOVĚ MŠ ZAULIČÍ VČETNĚ ROZVODŮ"}]
[null,null,null,null,null,null,null,"Zpět na seznam akčního plánu"]
["Datum","Popis průběhu"]
["2020-12-01","PD se zpracovává"]

{"sheet":"OpravaPlotuZŠ","index":4,"n_rows":3,"n_cols":8,"rows_kept":3,"cut":false,"hidden":true,"merged":[[0,0,0,7]]}
["X"]
[null,null,null,null,null,null,null,"Zpět na seznam akčního plánu"]
["Datum","Popis průběhu"]

{"sheet":"RekonstrukceSportovnihoHriste","index":5,"n_rows":3,"n_cols":8,"rows_kept":3,"cut":false,"hidden":true,"merged":[[0,0,0,7]]}
["X"]
[null,null,null,null,null,null,null,"Zpět na seznam akčního plánu"]
["Datum","Popis průběhu"]

{"sheet":"ProjektOdborneUcebny","index":6,"n_rows":3,"n_cols":8,"rows_kept":3,"cut":false,"hidden":true,"merged":[[0,0,0,7]]}
["X"]
[null,null,null,null,null,null,null,"Zpět na seznam akčního plánu"]
["Datum","Popis průběhu"]

{"sheet":"StudieVyuzitiPalarny","index":7,"n_rows":3,"n_cols":8,"rows_kept":3,"cut":false,"hidden":true,"merged":[[0,0,0,7]]}
["X"]
[null,null,null,null,null,null,null,"Zpět na seznam akčního plánu"]
["Datum","Popis průběhu"]

{"sheet":"ÚpravaTur.StezkyOcni","index":8,"n_rows":3,"n_cols":8,"rows_kept":3,"cut":false,"hidden":true,"merged":[[0,0,0,7]]}
[{"$f":"UPPER(\"úprava turistické stezky na Trúbu z parkoviště u Očního\")","v":"ÚPRAVA TURISTICKÉ STEZKY NA TRÚBU Z PARKOVIŠTĚ U OČNÍHO"}]
[null,null,null,null,null,null,null,"Zpět na seznam akčního plánu"]
["Datum","Popis průběhu"]

{"sheet":"RekonstrukcePropustkuLibotin","index":9,"n_rows":4,"n_cols":8,"rows_kept":4,"cut":false,"hidden":true,"merged":[[0,0,0,7]]}
[{"$f":"UPPER(\"rekonstrukce propustku na Libotíně (točna bus)\")","v":"REKONSTRUKCE PROPUSTKU NA LIBOTÍNĚ (TOČNA BUS)"}]
[null,null,null,null,null,null,null,"Zpět na seznam akčního plánu"]
["Datum","Popis průběhu"]
["2020-10-01","PD je zpracována"]

{"sheet":"OpravaPovrchuMistniKomunikace","index":10,"n_rows":5,"n_cols":8,"rows_kept":5,"cut":false,"hidden":true,"merged":[[0,0,0,7],[3,1,3,6],[2,1,2,6],[4,1,4,6]]}
[{"$f":"UPPER(\"oprava povrchu místní komunikace v průtahu městem\")","v":"OPRAVA POVRCHU MÍSTNÍ KOMUNIKACE V PRŮTAHU MĚSTEM"}]
[null,null,null,null,null,null,null,"Zpět na seznam akčního plánu"]
["Datum","Popis průběhu"]
["12/2020","PD zpracována, Podána žádost o dotaci"]
["12/2021","Dotace získána. Realizace 2024."]

{"sheet":"OdstraneniChodnikuZaulici","index":11,"n_rows":3,"n_cols":8,"rows_kept":3,"cut":false,"hidden":true,"merged":[[0,0,0,7]]}
["X"]
[null,null,null,null,null,null,null,"Zpět na seznam akčního plánu"]
["Datum","Popis průběhu"]

{"sheet":"Auto.SystemPark.Horecka","index":12,"n_rows":3,"n_cols":8,"rows_kept":3,"cut":false,"hidden":true,"merged":[[0,0,0,7]]}
["X"]
[null,null,null,null,null,null,null,"Zpět na seznam akčního plánu"]
["Datum","Popis průběhu"]

{"sheet":"Prod.ChodnikuBariny","index":13,"n_rows":4,"n_cols":8,"rows_kept":4,"cut":false,"hidden":true,"merged":[[0,0,0,7],[3,1,3,6],[2,1,2,6]]}
[{"$f":"UPPER(\"prodloužení chodníků včetně úpravy autobusových zastávek podél silnice II/480 na Bařinách\")","v":"PRODLOUŽENÍ CHODNÍKŮ VČETNĚ ÚPRAVY AUTOBUSOVÝCH ZASTÁVEK PODÉL SILNICE II/480 NA BAŘINÁCH"}]
[null,null,null,null,null,null,null,"Zpět na seznam akčního plánu"]
["Datum","Popis průběhu"]
["11/2020","PD pro stavební povolení zpracována"]

{"sheet":"StetovanaCesHBasta","index":14,"n_rows":3,"n_cols":8,"rows_kept":3,"cut":false,"hidden":true,"merged":[[0,0,0,7]]}
["X"]
[null,null,null,null,null,null,null,"Zpět na seznam akčního plánu"]
["Datum","Popis průběhu"]

{"sheet":"StetovanaCesBelohorska","index":15,"n_rows":4,"n_cols":8,"rows_kept":4,"cut":false,"hidden":true,"merged":[[0,0,0,7]]}
[{"$f":"UPPER(\"rekonstrukce štětované cesta Bělohorská\")","v":"REKONSTRUKCE ŠTĚTOVANÉ CESTA BĚLOHORSKÁ"}]
[null,null,null,null,null,null,null,"Zpět na seznam akčního plánu"]
["Datum","Popis průběhu"]
["2020-11-01","Akce doknčena"]

{"sheet":"OdkanalizovaniOcni","index":16,"n_rows":4,"n_cols":8,"rows_kept":4,"cut":false,"hidden":true,"merged":[[0,0,0,7]]}
[{"$f":"UPPER(\"odkanalizování lokality ulice K Očnímu\")","v":"ODKANALIZOVÁNÍ LOKALITY ULICE K OČNÍMU"}]
[null,null,null,null,null,null,null,"Zpět na seznam akčního plánu"]
["Datum","Popis průběhu"]
["2020-12-01","PD z roku 2009"]

{"sheet":"OdkanalizovaniDolni","index":17,"n_rows":4,"n_cols":8,"rows_kept":4,"cut":false,"hidden":true,"merged":[[0,0,0,7]]}
[{"$f":"UPPER(\"odkanalizování 4 RD na ulici Dolní\")","v":"ODKANALIZOVÁNÍ 4 RD NA ULICI DOLNÍ"}]
[null,null,null,null,null,null,null,"Zpět na seznam akčního plánu"]
["Datum","Popis průběhu"]
["2020-12-01","PD se zpracovává"]

{"sheet":"ZatrubneniVodotece","index":18,"n_rows":4,"n_cols":8,"rows_kept":4,"cut":false,"hidden":true,"merged":[[0,0,0,7]]}
[{"$f":"UPPER(\"zatrubnění vodoteče - ul. Dolní\")","v":"ZATRUBNĚNÍ VODOTEČE - UL. DOLNÍ"}]
[null,null,null,null,null,null,null,"Zpět na seznam akčního plánu"]
["Datum","Popis průběhu"]
[2019,"PD zadána zpracovateli"]

{"sheet":"OpravaStrechyZSStramberk","index":19,"n_rows":5,"n_cols":8,"rows_kept":5,"cut":false,"hidden":true,"merged":[[0,0,0,7]]}
[{"$f":"UPPER(\"oprava střechy, krovu a říms ZŠ Štramberk\")","v":"OPRAVA STŘECHY, KROVU A ŘÍMS ZŠ ŠTRAMBERK"}]
[null,null,null,null,null,null,null,"Zpět na seznam akčního plánu"]
["Datum","Popis průběhu"]
["12/2020","zpracována PD"]
["2/2021","podána žádost o dotaci"]

{"sheet":"AutobusoveZastavky","index":20,"n_rows":3,"n_cols":8,"rows_kept":3,"cut":false,"hidden":true,"merged":[[0,0,0,7],[3,1,3,6],[2,1,2,6]]}
["X"]
[null,null,null,null,null,null,null,"Zpět na seznam akčního plánu"]
["Datum","Popis průběhu"]

{"sheet":"OpravaChodnikuZOcNaTrub","index":21,"n_rows":3,"n_cols":8,"rows_kept":3,"cut":false,"hidden":true,"merged":[[0,0,0,7]]}
[{"$f":"UPPER(\"úprava chodníku na Trúbu z parkoviště u Očního\")","v":"ÚPRAVA CHODNÍKU NA TRÚBU Z PARKOVIŠTĚ U OČNÍHO"}]
[null,null,null,null,null,null,null,"Zpět na seznam akčního plánu"]
["Datum","Popis průběhu"]

{"sheet":"sanaceVrchniCesta","index":22,"n_rows":4,"n_cols":8,"rows_kept":4,"cut":false,"hidden":true,"merged":[[0,0,0,7]]}
[{"$f":"UPPER(\"sanace svahu nad Vrchní cestou\")","v":"SANACE SVAHU NAD VRCHNÍ CESTOU"}]
[null,null,null,null,null,null,null,"Zpět na seznam akčního plánu"]
["Datum","Popis průběhu"]
["2019-04-01","PD zpracována"]

{"sheet":"AutobusZast.Bariny","index":23,"n_rows":3,"n_cols":8,"rows_kept":3,"cut":false,"hidden":true,"merged":[[0,0,0,7]]}
["X"]
[null,null,null,null,null,null,null,"Zpět na seznam akčního plánu"]
["Datum","Popis průběhu"]

{"sheet":"VodovodKanalizaceLibotinII","index":24,"n_rows":3,"n_cols":8,"rows_kept":3,"cut":false,"hidden":true,"merged":[[0,0,0,7],[3,1,3,6],[4,1,4,6],[2,1,2,6]]}
[{"$f":"UPPER(\"vodovod a kanalizace v lokalitě Libotín - II. etapa - dokončení\")","v":"VODOVOD A KANALIZACE V LOKALITĚ LIBOTÍN - II. ETAPA - DOKONČENÍ"}]
[null,null,null,null,null,null,null,"Zpět na seznam akčního plánu"]
["Datum","Popis průběhu"]

{"sheet":"OpravaKomunikaceNadrazni","index":25,"n_rows":6,"n_cols":8,"rows_kept":6,"cut":false,"hidden":true,"merged":[[0,0,0,10]]}
[{"$f":"UPPER(\"oprava komunikace před bytovými domy 803 – 808 a komunikace kolem garáží na ulici Nádražní, včetně odvodnění\")","v":"OPRAVA KOMUNIKACE PŘED BYTOVÝMI DOMY 803 – 808 A KOMUNIKACE KOLEM GARÁŽÍ NA ULICI NÁDRAŽNÍ, VČETNĚ ODVODNĚNÍ"}]
[null,null,null,null,null,null,null,"Zpět na seznam akčního plánu"]
["Datum","Popis průběhu"]
["12/2020","PD se zpracovává"]
["2021-06-04","realizace stavby dešťové kanalizace"]
[2022,"Oprava komunikace plánována po \"sednutí\" zeminy v roce 2022"]

{"sheet":"CelkovaOpravaVezeTruba","index":26,"n_rows":3,"n_cols":8,"rows_kept":3,"cut":false,"hidden":true,"merged":[[6,1,6,6],[0,0,0,7],[3,1,3,6],[2,1,2,6],[5,1,5,6],[4,1,4,6]]}
["X"]
[null,null,null,null,null,null,null,"Zpět na seznam akčního plánu"]
["Datum","Popis průběhu"]

{"sheet":"Rozpracovanost","index":27,"n_rows":4,"n_cols":1,"rows_kept":4,"cut":false,"hidden":true,"merged":[]}
[]
["Schváleno"]
["Probíhá"]
["Dokončeno"]

{"sheet":"ZavlazovaniPrijezdovkaFot.Hris.","index":28,"n_rows":6,"n_cols":8,"rows_kept":6,"cut":false,"hidden":true,"merged":[[0,0,0,7],[3,1,3,6],[2,1,2,6],[4,1,4,6],[5,1,5,6]]}
[{"$f":"UPPER(\"zavlažování fotbalového hřiště, oprava příjezdové komunikace\")","v":"ZAVLAŽOVÁNÍ FOTBALOVÉHO HŘIŠTĚ, OPRAVA PŘÍJEZDOVÉ KOMUNIKACE"}]
[null,null,null,null,null,null,null,"Zpět na seznam akčního plánu"]
["Datum","Popis průběhu"]
[2020,"350 tis.Kč - zavlažovací zařízení (zahrnuto do rozpočtu)"]
["4/2020","vzhledem k ek.situace spojené s COVID-19 a poklesem sdílených daní přesunuto do roku 2021 (rozp.opatření č.1/2020)"]
["12/2021","vzhledem k ek.situace spojené s COVID-19 a poklesem sdílených daní akce pozastavena"]

{"sheet":"RevitalizaceZahradyMSZaulici","index":29,"n_rows":6,"n_cols":8,"rows_kept":6,"cut":false,"hidden":true,"merged":[[0,0,0,7]]}
[{"$f":"UPPER(\"revitalizace zahrady Mateřské školy Zauličí včetně doplnění herních prvků\")","v":"REVITALIZACE ZAHRADY MATEŘSKÉ ŠKOLY ZAULIČÍ VČETNĚ DOPLNĚNÍ HERNÍCH PRVKŮ"}]
[null,null,null,null,null,null,null,"Zpět na seznam akčního plánu"]
["Datum","Popis průběhu"]
["5/2020","PD zpracována"]
["6/2021","Realizace části projektu - herních prvků - pískoviště s domečkem z prostředků RF školy, domeček s malou skluzavkou z daru Innogy, loďka z prostředků města"]
["11/2021","Realizace 2. etapy - lanové prvky z daru firmy Cemix (300 tis.Kč + 14 tis.Kč z města)"]

{"sheet":"RevitalizaceZahradyMSBariny","index":30,"n_rows":5,"n_cols":8,"rows_kept":5,"cut":false,"hidden":true,"merged":[[0,0,0,7]]}
[{"$f":"UPPER(\"revitalizace zahrady Mateřské školy Bařiny včetně doplnění herních prvků\")","v":"REVITALIZACE ZAHRADY MATEŘSKÉ ŠKOLY BAŘINY VČETNĚ DOPLNĚNÍ HERNÍCH PRVKŮ"}]
[null,null,null,null,null,null,null,"Zpět na seznam akčního plánu"]
["Datum","Popis průběhu"]
["1905-07-10","Studie dokončena"]
["2021-01-01","zadána revize projektu"]

{"sheet":"RekonstrukceArealuKoupaliste","index":31,"n_rows":3,"n_cols":8,"rows_kept":3,"cut":false,"hidden":true,"merged":[[0,0,0,7],[3,1,3,6],[2,1,2,6]]}
["X"]
[null,null,null,null,null,null,null,"Zpět na seznam akčního plánu"]
["Datum","Popis průběhu"]

{"sheet":"NoveSatnyZS","index":32,"n_rows":4,"n_cols":8,"rows_kept":4,"cut":false,"hidden":true,"merged":[[0,0,0,7],[3,1,3,6],[2,1,2,6]]}
[{"$f":"UPPER(\"nové šatny v ZŠ - samostatné uzamykatelné skříňky\")","v":"NOVÉ ŠATNY V ZŠ - SAMOSTATNÉ UZAMYKATELNÉ SKŘÍŇKY"}]
[null,null,null,null,null,null,null,"Zpět na seznam akčního plánu"]
["Datum","Popis průběhu"]
["6/2020","Finanční výbor doporučil financovat z rezervního fondu a fondu oprav ZŠ"]

{"sheet":"VstupZSSpojovaciChodba","index":33,"n_rows":3,"n_cols":8,"rows_kept":3,"cut":false,"hidden":true,"merged":[[0,0,0,7],[3,1,3,6],[2,1,2,6]]}
["X"]
[null,null,null,null,null,null,null,"Zpět na seznam akčního plánu"]
["Datum","Popis průběhu"]

{"sheet":"OpravaPlotuZahradaZS","index":34,"n_rows":3,"n_cols":8,"rows_kept":3,"cut":false,"hidden":true,"merged":[[0,0,0,7]]}
[{"$f":"UPPER(\"oprava plotu v zahradě ZŠ (cesta ke hřbitovu)\")","v":"OPRAVA PLOTU V ZAHRADĚ ZŠ (CESTA KE HŘBITOVU)"}]
[null,null,null,null,null,null,null,"Zpět na seznam akčního plánu"]
["Datum","Popis průběhu"]

{"sheet":"OpravaRozsireniHristePiskovna","index":35,"n_rows":5,"n_cols":8,"rows_kept":5,"cut":false,"hidden":true,"merged":[[0,0,0,7],[3,1,3,6],[2,1,2,6],[4,1,4,6]]}
[{"$f":"UPPER(\"rozšíření a oprava dětského hřiště v Pískovně\")","v":"ROZŠÍŘENÍ A OPRAVA DĚTSKÉHO HŘIŠTĚ V PÍSKOVNĚ"}]
[null,null,null,null,null,null,null,"Zpět na seznam akčního plánu"]
["Datum","Popis průběhu"]
["2019-12-05","Provedeno vyčistění pozmku od navezené deponie a srovnání plochy."]
["4/2020","vzhledem k ek.situaci spojené s COVID-19 a poklesu sdílených daní, přesunuto do roku 2021 (rozp.opatření č. 1/2020)"]

{"sheet":"SportovisteZahradaZS","index":36,"n_rows":3,"n_cols":8,"rows_kept":3,"cut":false,"hidden":true,"merged":[[0,0,0,7]]}
[{"$f":"UPPER(\"vybudování sportoviště v zahradě ZŠ\")","v":"VYBUDOVÁNÍ SPORTOVIŠTĚ V ZAHRADĚ ZŠ"}]
[null,null,null,null,null,null,null,"Zpět na seznam akčního plánu"]
["Datum","Popis průběhu"]

{"sheet":"RekonstrukceSport.HristeZS","index":37,"n_rows":3,"n_cols":8,"rows_kept":3,"cut":false,"hidden":true,"merged":[[0,0,0,7]]}
[{"$f":"UPPER(\"rekonstrukce sportovního hřiště u ZŠ\")","v":"REKONSTRUKCE SPORTOVNÍHO HŘIŠTĚ U ZŠ"}]
[null,null,null,null,null,null,null,"Zpět na seznam akčního plánu"]
["Datum","Popis průběhu"]

{"sheet":"OdbornaUcebnaZS","index":38,"n_rows":3,"n_cols":8,"rows_kept":3,"cut":false,"hidden":true,"merged":[[0,0,0,7]]}
[{"$f":"UPPER(\"projekt Odborné učebny ZŠ\")","v":"PROJEKT ODBORNÉ UČEBNY ZŠ"}]
[null,null,null,null,null,null,null,"Zpět na seznam akčního plánu"]
["Datum","Popis průběhu"]

{"sheet":"UpravaProstorRadnice","index":39,"n_rows":4,"n_cols":8,"rows_kept":4,"cut":false,"hidden":true,"merged":[[0,0,0,7]]}
[{"$f":"UPPER(\"úprava prostor radnice - místnost starosty, místostarosty a sekretariátu\")","v":"ÚPRAVA PROSTOR RADNICE - MÍSTNOST STAROSTY, MÍSTOSTAROSTY A SEKRETARIÁTU"}]
[null,null,null,null,null,null,null,"Zpět na seznam akčního plánu"]
["Datum","Popis průběhu"]
["2019-05-01","Zpracována studie"]

{"sheet":"ZazemiTech.SluzebPiskovna","index":40,"n_rows":4,"n_cols":8,"rows_kept":4,"cut":false,"hidden":true,"merged":[[0,0,0,7],[3,1,3,6],[2,1,2,6]]}
[{"$f":"UPPER(\"zpracování studie pro vybudování areálu a zázemí pro technické služby na pozemcích v Pískovně\")","v":"ZPRACOVÁNÍ STUDIE PRO VYBUDOVÁNÍ AREÁLU A ZÁZEMÍ PRO TECHNICKÉ SLUŽBY NA POZEMCÍCH V PÍSKOVNĚ"}]
[null,null,null,null,null,null,null,"Zpět na seznam akčního plánu"]
["Datum","Popis průběhu"]
["12/2020","Studie se zpracovává"]

{"sheet":"RekonstrukceStaraSkola","index":41,"n_rows":3,"n_cols":8,"rows_kept":3,"cut":false,"hidden":true,"merged":[[8,1,8,6],[6,1,6,6],[7,1,7,6],[0,0,0,7],[2,1,2,6],[3,1,3,6],[4,1,4,6],[5,1,5,6]]}
["X"]
[null,null,null,null,null,null,null,"Zpět na seznam akčního plánu"]
["Datum","Popis průběhu"]

{"sheet":"ObjektPalarna","index":42,"n_rows":3,"n_cols":8,"rows_kept":3,"cut":false,"hidden":true,"merged":[[0,0,0,7]]}
[{"$f":"UPPER(\"studie využití objektu Palárny a přilehlých pozemků pro rozhodnutí o případné koupi\")","v":"STUDIE VYUŽITÍ OBJEKTU PALÁRNY A PŘILEHLÝCH POZEMKŮ PRO ROZHODNUTÍ O PŘÍPADNÉ KOUPI"}]
[null,null,null,null,null,null,null,"Zpět na seznam akčního plánu"]
["Datum","Popis průběhu"]

{"sheet":"VyuzitiRekonstrukceSkoly","index":43,"n_rows":4,"n_cols":8,"rows_kept":4,"cut":false,"hidden":true,"merged":[[0,0,0,7],[3,1,3,6],[2,1,2,6]]}
[{"$f":"UPPER(\"studie využití a rekonstrukce budovy ZUŠ\")","v":"STUDIE VYUŽITÍ A REKONSTRUKCE BUDOVY ZUŠ"}]
[null,null,null,null,null,null,null,"Zpět na seznam akčního plánu"]
["Datum","Popis průběhu"]
["11/2020","PD zpracována"]

{"sheet":"RekonstrukceSuterenuTelecvicny","index":44,"n_rows":3,"n_cols":8,"rows_kept":3,"cut":false,"hidden":true,"merged":[[0,0,0,7],[3,1,3,6],[2,1,2,6],[4,1,4,6]]}
["X"]
[null,null,null,null,null,null,null,"Zpět na seznam akčního plánu"]
["Datum","Popis průběhu"]

{"sheet":"RekonstrukceDomuSluzeb","index":45,"n_rows":3,"n_cols":8,"rows_kept":3,"cut":false,"hidden":true,"merged":[[0,0,0,7]]}
[{"$f":"UPPER(\"rekonstrukce budovy Domu služeb\")","v":"REKONSTRUKCE BUDOVY DOMU SLUŽEB"}]
[null,null,null,null,null,null,null,"Zpět na seznam akčního plánu"]
["Datum","Popis průběhu"]

{"sheet":"RekonstrukceMat.SkolyZaulici","index":46,"n_rows":3,"n_cols":8,"rows_kept":3,"cut":false,"hidden":true,"merged":[[0,0,0,7]]}
[{"$f":"UPPER(\"rekonstrukce budovy Mateřské školy Zauličí \")","v":"REKONSTRUKCE BUDOVY MATEŘSKÉ ŠKOLY ZAULIČÍ "}]
[null,null,null,null,null,null,null,"Zpět na seznam akčního plánu"]
["Datum","Popis průběhu"]

{"sheet":"RekonstrukceTech.Sluzeb","index":47,"n_rows":3,"n_cols":8,"rows_kept":3,"cut":false,"hidden":true,"merged":[[0,0,0,7]]}
[{"$f":"UPPER(\"rekonstrukce budovy technických služeb - výměna oken, nová vrata, fasáda\")","v":"REKONSTRUKCE BUDOVY TECHNICKÝCH SLUŽEB - VÝMĚNA OKEN, NOVÁ VRATA, FASÁDA"}]
[null,null,null,null,null,null,null,"Zpět na seznam akčního plánu"]
["Datum","Popis průběhu"]

{"sheet":"RekonstrukcePosty","index":48,"n_rows":5,"n_cols":8,"rows_kept":5,"cut":false,"hidden":true,"merged":[[0,0,0,7],[3,1,3,6],[4,1,4,6],[2,1,2,6]]}
[{"$f":"UPPER(\"rekonstrukce budovy pošty včetně kanalizace\")","v":"REKONSTRUKCE BUDOVY POŠTY VČETNĚ KANALIZACE"}]
[null,null,null,null,null,null,null,"Zpět na seznam akčního plánu"]
["Datum","Popis průběhu"]
["12/2020","PD je zpracována"]
["12/2021","V případě většího přebytku na konci roku 2021, možná realizace v 2022"]

{"sheet":"KomunikaceKrizovatkaPalarna","index":49,"n_rows":4,"n_cols":8,"rows_kept":4,"cut":false,"hidden":true,"merged":[[0,0,0,7]]}
[{"$f":"UPPER(\"úprava komunikace a křižovatky Pod Palárnou včetně chodníků a přechodů pro chodce\")","v":"ÚPRAVA KOMUNIKACE A KŘIŽOVATKY POD PALÁRNOU VČETNĚ CHODNÍKŮ A PŘECHODŮ PRO CHODCE"}]
[null,null,null,null,null,null,null,"Zpět na seznam akčního plánu"]
["Datum","Popis průběhu"]
["2018-10-01","Studie zpracována městem Kopřivnice"]

{"sheet":"RekonstrukceChodnikuNadrazni","index":50,"n_rows":3,"n_cols":8,"rows_kept":3,"cut":false,"hidden":true,"merged":[[0,0,0,7]]}
[{"$f":"UPPER(\"rekonstrukce chodníku na ulici Nádražní včetně řešení železničního přejezdu\")","v":"REKONSTRUKCE CHODNÍKU NA ULICI NÁDRAŽNÍ VČETNĚ ŘEŠENÍ ŽELEZNIČNÍHO PŘEJEZDU"}]
[null,null,null,null,null,null,null,"Zpět na seznam akčního plánu"]
["Datum","Popis průběhu"]

{"sheet":"ZastavbovaStudieParNovojicinska","index":51,"n_rows":3,"n_cols":8,"rows_kept":3,"cut":false,"hidden":true,"merged":[[0,0,0,7]]}
[{"$f":"UPPER(\"zpracování zástavbové studie s cílem vybudování parkoviště na ulici Novojičínské\")","v":"ZPRACOVÁNÍ ZÁSTAVBOVÉ STUDIE S CÍLEM VYBUDOVÁNÍ PARKOVIŠTĚ NA ULICI NOVOJIČÍNSKÉ"}]
[null,null,null,null,null,null,null,"Zpět na seznam akčního plánu"]
["Datum","Popis průběhu"]

{"sheet":"ParkovaciPlochyProNavstevniky","index":52,"n_rows":6,"n_cols":8,"rows_kept":6,"cut":false,"hidden":true,"merged":[[0,0,0,7],[3,1,3,6],[4,1,4,6],[5,1,5,6],[2,1,2,6]]}
[{"$f":"UPPER(\"rozšíření parkovacích ploch pro návštěvníky města\")","v":"ROZŠÍŘENÍ PARKOVACÍCH PLOCH PRO NÁVŠTĚVNÍKY MĚSTA"}]
[null,null,null,null,null,null,null,"Zpět na seznam akčního plánu"]
["Datum","Popis průběhu"]
["12/2021","Vytvořena odstavná plocha na ulici Novojičínské"]
["5/2021","Před tělocvičnou nové parkovací místa zrušením chodníku (169 tis.)"]
["6/2021","Úprava a částečné rozšíření odstavné plochy (parkoviště) u Arboreta (223 tis.)"]

{"sheet":"OpravaProstorHasicarna","index":53,"n_rows":3,"n_cols":8,"rows_kept":3,"cut":false,"hidden":true,"merged":[[0,0,0,7]]}
[{"$f":"UPPER(\"oprava prostor před hasičárnou\")","v":"OPRAVA PROSTOR PŘED HASIČÁRNOU"}]
[null,null,null,null,null,null,null,"Zpět na seznam akčního plánu"]
["Datum","Popis průběhu"]

{"sheet":"OpravaMostuBariny","index":54,"n_rows":3,"n_cols":8,"rows_kept":3,"cut":false,"hidden":true,"merged":[[0,0,0,7]]}
["X"]
[null,null,null,null,null,null,null,"Zpět na seznam akčního plánu"]
["Datum","Popis průběhu"]

{"sheet":"SvetelnyPrechodBariny","index":55,"n_rows":3,"n_cols":8,"rows_kept":3,"cut":false,"hidden":true,"merged":[[0,0,0,7]]}
["X"]
[null,null,null,null,null,null,null,"Zpět na seznam akčního plánu"]
["Datum","Popis průběhu"]

{"sheet":"BezpecnostChodcuKozina","index":56,"n_rows":3,"n_cols":8,"rows_kept":3,"cut":false,"hidden":true,"merged":[[0,0,0,7]]}
[{"$f":"UPPER(\"zvýšení bezpečnosti chodců na komunikaci „Polnička“ - Kozina\")","v":"ZVÝŠENÍ BEZPEČNOSTI CHODCŮ NA KOMUNIKACI „POLNIČKA“ - KOZINA"}]
[null,null,null,null,null,null,null,"Zpět na seznam akčního plánu"]
["Datum","Popis průběhu"]

{"sheet":"PrutahMestem","index":57,"n_rows":4,"n_cols":8,"rows_kept":4,"cut":false,"hidden":true,"merged":[[0,0,0,7],[3,1,3,6],[2,1,2,6]]}
[{"$f":"UPPER(\"dopravně stavební úpravy ul. Zauličí\")","v":"DOPRAVNĚ STAVEBNÍ ÚPRAVY UL. ZAULIČÍ"}]
[null,null,null,null,null,null,null,"Zpět na seznam akčního plánu"]
["Datum","Popis průběhu"]
["x","x"]

{"sheet":"StetovanaCestaBasta","index":58,"n_rows":3,"n_cols":8,"rows_kept":3,"cut":false,"hidden":true,"merged":[[0,0,0,7]]}
[{"$f":"UPPER(\"oprava štětované cesty - Horní Bašta\")","v":"OPRAVA ŠTĚTOVANÉ CESTY - HORNÍ BAŠTA"}]
[null,null,null,null,null,null,null,"Zpět na seznam akčního plánu"]
["Datum","Popis průběhu"]

{"sheet":"KomunikaceHornychovice","index":59,"n_rows":4,"n_cols":8,"rows_kept":4,"cut":false,"hidden":true,"merged":[[0,0,0,7]]}
[{"$f":"UPPER(\"oprava místní komunikace na Hornychovicích\")","v":"OPRAVA MÍSTNÍ KOMUNIKACE NA HORNYCHOVICÍCH"}]
[null,null,null,null,null,null,null,"Zpět na seznam akčního plánu"]
["Datum","Popis průběhu"]
["2020-10-01","Akce ukončena"]

{"sheet":"OpravaChod.Kom.Drazne","index":60,"n_rows":3,"n_cols":8,"rows_kept":3,"cut":false,"hidden":true,"merged":[[0,0,0,7],[3,1,3,6]]}
["X"]
[null,null,null,null,null,null,null,"Zpět na seznam akčního plánu"]
["Datum","Popis průběhu"]

{"sheet":"VodovodKanalizaceLibotin","index":61,"n_rows":4,"n_cols":8,"rows_kept":4,"cut":false,"hidden":true,"merged":[[0,0,0,7]]}
[{"$f":"UPPER(\"vodovod a kanalizace v lokalitě Libotín\")","v":"VODOVOD A KANALIZACE V LOKALITĚ LIBOTÍN"}]
[null,null,null,null,null,null,null,"Zpět na seznam akčního plánu"]
["Datum","Popis průběhu"]
["2020-11-01","Akce doknčena včetně zkušebního provozu"]

{"sheet":"KamerovySystemNamestiZS","index":62,"n_rows":3,"n_cols":8,"rows_kept":3,"cut":false,"hidden":true,"merged":[[0,0,0,7]]}
[{"$f":"UPPER(\"kamerový systém - náměstí, u ZŠ\")","v":"KAMEROVÝ SYSTÉM - NÁMĚSTÍ, U ZŠ"}]
[null,null,null,null,null,null,null,"Zpět na seznam akčního plánu"]
["Datum","Popis průběhu"]

{"sheet":"CelkovaRekonstrukceOsvetleni","index":63,"n_rows":6,"n_cols":8,"rows_kept":6,"cut":false,"hidden":true,"merged":[[0,0,0,7],[2,1,2,6],[3,1,3,6],[4,1,4,6],[5,1,5,6]]}
[{"$f":"UPPER(\"celková rekonstrukce historického osvětlení\")","v":"CELKOVÁ REKONSTRUKCE HISTORICKÉHO OSVĚTLENÍ"}]
[null,null,null,null,null,null,null,"Zpět na seznam akčního plánu"]
["Datum","Popis průběhu"]
["12/2019","Stavba dokončena, od 1. 1. 2020 začíná zkušební provoz"]
["4/2020","V rozp.opatření č. 1/2020 vyškrknuto vzhledem k ekon.dopadům pandemie a s tím spojeného poklesu příjmů sdílených daní"]
["12/2021","V roce 2022 se plánuje výměna nebo repase několika luceren v úseku, kde se bude provádět obnova komunikace (průtah městem)"]

{"sheet":"VymenaMobiliareMesta","index":64,"n_rows":6,"n_cols":8,"rows_kept":6,"cut":false,"hidden":true,"merged":[[0,0,0,7],[3,1,3,6],[2,1,2,6],[4,1,4,6],[5,1,5,6]]}
[{"$f":"UPPER(\"výměna mobiliáře města - lavičky, odpadkové koše, vývěsní skříňky, plakátovací plochy\")","v":"VÝMĚNA MOBILIÁŘE MĚSTA - LAVIČKY, ODPADKOVÉ KOŠE, VÝVĚSNÍ SKŘÍŇKY, PLAKÁTOVACÍ PLOCHY"}]
[null,null,null,null,null,null,null,"Zpět na seznam akčního plánu"]
["Datum","Popis průběhu"]
["11-12/2019","Pořízeny nové plakátovací plochy, vývěsní skříňky a 33 odpadkových košů"]
["4/2020","V rozp.opatření č.1/2020 vyšrknuto z důvodu ekon.dopadů pandemie a s tím souvisejícím poklesu příjmů ze sdíl.daní"]
["5-6/2021","V rámci dotace přes MAS Lašsko výměna všech stávajících laviček na náměstí a doplnění 10 ks stojanů na kola"]

{"sheet":"RevitalizaceNarodnihoSadu","index":65,"n_rows":5,"n_cols":8,"rows_kept":5,"cut":false,"hidden":true,"merged":[[0,0,0,7],[3,1,3,6],[2,1,2,6],[4,1,4,6]]}
[{"$f":"UPPER(\"revitalizace Národního sadu\")","v":"REVITALIZACE NÁRODNÍHO SADU"}]
[null,null,null,null,null,null,null,"Zpět na seznam akčního plánu"]
["Datum","Popis průběhu"]
[2017,"PD zpracována"]
[2021,"Výzva by měla být vypsána začátkem roku nebo na jaře 2022. Realizace by byla v 2023."]

{"sheet":"RekonstrukceHrbitova","index":66,"n_rows":5,"n_cols":8,"rows_kept":5,"cut":false,"hidden":true,"merged":[[0,0,0,7],[3,1,3,6],[2,1,2,6],[4,1,4,6]]}
[{"$f":"UPPER(\"rekonstrukce místního hřbitova\")","v":"REKONSTRUKCE MÍSTNÍHO HŘBITOVA"}]
[null,null,null,null,null,null,null,"Zpět na seznam akčního plánu"]
["Datum","Popis průběhu"]
[null,"Probíhá zadávací řízení na realizaci I. etapy Obnovy hřbitova"]
["12/2020","Stavba dokončena 11/2020. Některé práce budou realizovány na jaře 2021 - terénní úpravy, dosetí trávy, stojany na konve"]

{"sheet":"VenkovniNasvetleniTruby","index":67,"n_rows":4,"n_cols":8,"rows_kept":4,"cut":false,"hidden":true,"merged":[[0,0,0,7]]}
["x"]
[null,null,null,null,null,null,null,"Zpět na seznam akčního plánu"]
["Datum","Popis průběhu"]
["x","x"]

{"sheet":"RekonstrukceHistorickehoOsv.","index":68,"n_rows":3,"n_cols":8,"rows_kept":3,"cut":false,"hidden":true,"merged":[[0,0,0,7],[3,1,3,6],[2,1,2,6]]}
["X"]
[null,null,null,null,null,null,null,"Zpět na seznam akčního plánu"]
["Datum","Popis průběhu"]

{"sheet":"OdkanalizovaniHraduTruba","index":69,"n_rows":5,"n_cols":8,"rows_kept":5,"cut":false,"hidden":true,"merged":[[0,0,0,7],[4,1,4,6],[3,1,3,6],[2,1,2,6]]}
["x"]
[null,null,null,null,null,null,null,"Zpět na seznam akčního plánu"]
["Datum","Popis průběhu"]
["x","x"]
["x","x"]

{"sheet":"RekonstrukcePristupuNaTrubu","index":70,"n_rows":4,"n_cols":8,"rows_kept":4,"cut":false,"hidden":true,"merged":[[0,0,0,8],[3,1,3,6],[2,1,2,6]]}
[{"$f":"UPPER(\"rekonstrukce přístupu na Trúbu z náměstí - oprava schodů a výměna zábradlí, vyčištění od náletů\")","v":"REKONSTRUKCE PŘÍSTUPU NA TRÚBU Z NÁMĚSTÍ - OPRAVA SCHODŮ A VÝMĚNA ZÁBRADLÍ, VYČIŠTĚNÍ OD NÁLETŮ"}]
[null,null,null,null,null,null,null,"Zpět na seznam akčního plánu"]
["Datum","Popis průběhu"]
["2020","Bylo provedeno vyčištění trasy od náletu se souhlasem majitele, natřeno zábradlí."]

{"sheet":"UpravaProstoruNamesti","index":71,"n_rows":3,"n_cols":8,"rows_kept":3,"cut":false,"hidden":true,"merged":[[0,0,0,7]]}
[{"$f":"UPPER(\"zpracování studie - úprava prostoru Náměstí - předlážení, doprava, zeleň\")","v":"ZPRACOVÁNÍ STUDIE - ÚPRAVA PROSTORU NÁMĚSTÍ - PŘEDLÁŽENÍ, DOPRAVA, ZELEŇ"}]
[null,null,null,null,null,null,null,"Zpět na seznam akčního plánu"]
["Datum","Popis průběhu"]

{"sheet":"ElektronickaRezervaceTelocvicny","index":72,"n_rows":3,"n_cols":8,"rows_kept":3,"cut":false,"hidden":true,"merged":[[0,0,0,7],[3,1,3,6],[2,1,2,6],[4,1,4,6],[5,1,5,6]]}
[{"$f":"UPPER(\"elektronická rezervace prostor tělocvičny\")","v":"ELEKTRONICKÁ REZERVACE PROSTOR TĚLOCVIČNY"}]
[null,null,null,null,null,null,null,"Zpět na seznam akčního plánu"]
["Datum","Popis průběhu"]

{"sheet":"KomplexniPrezentaceSpolku","index":73,"n_rows":3,"n_cols":8,"rows_kept":3,"cut":false,"hidden":true,"merged":[[0,0,0,7],[3,1,3,6],[2,1,2,6]]}
[{"$f":"UPPER(\"komplexní prezentace spolků na webových stránkách města\")","v":"KOMPLEXNÍ PREZENTACE SPOLKŮ NA WEBOVÝCH STRÁNKÁCH MĚSTA"}]
[null,null,null,null,null,null,null,"Zpět na seznam akčního plánu"]
["Datum","Popis průběhu"]

{"sheet":"PravidlaRozdelovaniPrispevku","index":74,"n_rows":5,"n_cols":8,"rows_kept":5,"cut":false,"hidden":true,"merged":[[0,0,0,7],[3,1,3,6],[2,1,2,6],[4,1,4,6]]}
[{"$f":"UPPER(\"zpracování pravidel pro rozdělování finančních příspěvků spolkům a sport.klubům\")","v":"ZPRACOVÁNÍ PRAVIDEL PRO ROZDĚLOVÁNÍ FINANČNÍCH PŘÍSPĚVKŮ SPOLKŮM A SPORT.KLUBŮM"}]
[null,null,null,null,null,null,null,"Zpět na seznam akčního plánu"]
["Datum","Popis průběhu"]
["11/2019"]
["4/2020"]

{"sheet":"NickNackKelimky","index":75,"n_rows":3,"n_cols":8,"rows_kept":3,"cut":false,"hidden":true,"merged":[[0,0,0,12],[3,1,3,6]]}
[]
[null,null,null,null,null,null,null,"Zpět na seznam akčního plánu"]
["Datum","Popis průběhu"]

{"sheet":"KotlikoveDotace","index":76,"n_rows":4,"n_cols":8,"rows_kept":4,"cut":false,"hidden":true,"merged":[[0,0,0,7],[3,1,3,6],[2,1,2,6]]}
[{"$f":"UPPER(\"kotlíkové dotace - zapojení se do programu - zprostředkování úvěrů občanům\")","v":"KOTLÍKOVÉ DOTACE - ZAPOJENÍ SE DO PROGRAMU - ZPROSTŘEDKOVÁNÍ ÚVĚRŮ OBČANŮM"}]
[null,null,null,null,null,null,null,"Zpět na seznam akčního plánu"]
["Datum","Popis průběhu"]
[null,"Vzhledem k malému zájmu občanů, nebyla tato služba realizována"]

{"sheet":"InteraktivniMapa","index":77,"n_rows":3,"n_cols":8,"rows_kept":3,"cut":false,"hidden":true,"merged":[[0,0,0,7],[2,1,2,7],[3,1,3,7]]}
[]
[null,null,null,null,null,null,null,"Zpět na seznam akčního plánu"]
["Datum","Popis průběhu"]

{"sheet":"VybudovaniKomposteru","index":78,"n_rows":4,"n_cols":8,"rows_kept":4,"cut":false,"hidden":true,"merged":[[0,0,0,7],[3,1,3,7]]}
[{"$f":"UPPER(\"analýza možnosti vybudování kompostárny\")","v":"ANALÝZA MOŽNOSTI VYBUDOVÁNÍ KOMPOSTÁRNY"}]
[null,null,null,null,null,null,null,"Zpět na seznam akčního plánu"]
["Datum","Popis průběhu"]
["9/2022","Odloženo. Původně plánované místo za Sběrným dvorem využito pro projekt nového zázemí TS."]

{"sheet":"EvidenceOdpadovychNadob","index":79,"n_rows":3,"n_cols":8,"rows_kept":3,"cut":false,"hidden":true,"merged":[[0,0,0,10],[2,1,2,6],[3,1,3,6],[4,1,4,6],[5,1,5,6]]}
["x"]
[null,null,null,null,null,null,null,"Zpět na seznam akčního plánu"]
["Datum","Popis průběhu"]

{"sheet":"EstetizaceMistNaTridenyOdpad","index":80,"n_rows":5,"n_cols":8,"rows_kept":5,"cut":false,"hidden":true,"merged":[[0,0,0,7],[3,1,3,6],[4,1,4,6]]}
[{"$f":"UPPER(\"estetizace míst na tříděný odpad - zpevněná stání pro kontejnery\")","v":"ESTETIZACE MÍST NA TŘÍDĚNÝ ODPAD - ZPEVNĚNÁ STÁNÍ PRO KONTEJNERY"}]
[null,null,null,null,null,null,null,"Zpět na seznam akčního plánu"]
["Datum","Popis průběhu"]
["8-11/2021","ze strany Eko-komu zpracována analýza míst na tříděný odpad, která by měla určit, která místa jsou nejvytíženější, kde upravit počet nádob případně, kde přidat nová místa."]
["9/2022","Probíhá analýza odpadového hospodářství, na kterou dostalo město dotaci od MSK. Ta by měla být podkladem pro žádost o dotaci \"Door to Door\". Estetizace současných míst pozastavena do výsledků analýzy a žádosti o dotaci. V případě,  že by byl realizován projekt dodání popelnic na plast a papír do každého domu, došlo by k regulaci míst na kontejnery na tříděný odpad. Do té doby je nehospodárné vynakládat peníze, pokud budou místa rušeny nebo zmenšovány."]

{"sheet":"ModerniPrezentace","index":81,"n_rows":4,"n_cols":8,"rows_kept":4,"cut":false,"hidden":true,"merged":[[0,0,0,7],[3,1,3,6],[2,1,2,6]]}
[{"$f":"UPPER(\"moderní videoprezentace města\")","v":"MODERNÍ VIDEOPREZENTACE MĚSTA"}]
[null,null,null,null,null,null,null,"Zpět na seznam akčního plánu"]
["Datum","Popis průběhu"]
["2019-12-04","Videoprezentace představena na Galavečeru k 660 letům města. 85% hrazeno z dotace Moravskoslezského kraje"]

{"sheet":"PropagacniMaterialy","index":82,"n_rows":9,"n_cols":8,"rows_kept":9,"cut":false,"hidden":true,"merged":[[7,1,7,6],[8,1,8,6],[6,1,6,6],[0,0,0,7],[3,1,3,6],[2,1,2,6],[5,1,5,6],[4,1,4,6]]}
[{"$f":"UPPER(\"nové propagační předměty a materiály města\")","v":"NOVÉ PROPAGAČNÍ PŘEDMĚTY A MATERIÁLY MĚSTA"}]
[null,null,null,null,null,null,null,"Zpět na seznam akčního plánu"]
["Datum","Popis průběhu"]
[2019,"V roce 2019 pořízeny propagační Flash-disky, otvíráky, bloky, mýdla, pivní sklenice - s novým logem města"]
["10/2019","V rámci dotace z MSK na TIC pořízeny nové tiskoviny (letáky)"]
["11/2019","Nástěnné kalendáře na rok 2020 z fotek přihlášených do fotosoutěže vyhlášené při příležitosti 660 let města a stolní kalendáře z výtvarných prací žáků ZŠ"]
["4/2020","V rámci dotace z MSK na TIC budou pořízeny nové letáky (propagační materiály) na Trúbu. V rozpočtu města je počítáno s pořízením nových propagačních předmětů - sklenice, fotoleporelo v dřevěných deskách, dřevěné podtácky, …"]
["5/2021","V 2020 a 2021 pořízeny propagační předměty s výpalem motivů hlavních dominant města (Pohled na město,Trúba, Kostel sv.J.Nepomuckého, Kostel sv.Kateřiny, Zvonička Bartoloměj, jeskyně Šipka) - dřevěné podtácky, klíčenky, bloky v dřevěných deskách, stojánek na mobil, fotoleporelo města, ..."]
["6/2021","do areálu Trúba budou doplněny nové jednotné informační tabule zpracované v souladu s grafickým manuálem"]

{"sheet":"StrankyMICTrubyMuzeaKnihovny","index":83,"n_rows":3,"n_cols":8,"rows_kept":3,"cut":false,"hidden":true,"merged":[[0,0,0,7],[2,1,2,7],[3,1,3,7],[4,1,4,7],[5,1,5,7]]}
["x"]
[null,null,null,null,null,null,null,"Zpět na seznam akčního plánu"]
["Datum","Popis průběhu"]

{"sheet":"BankomatNamesti","index":84,"n_rows":6,"n_cols":8,"rows_kept":6,"cut":false,"hidden":true,"merged":[[0,0,0,7],[3,1,3,6],[2,1,2,6],[4,1,4,6],[5,1,5,6]]}
[{"$f":"UPPER(\"zajištění bankomatu na náměstí nebo v těsné blízkosti\")","v":"ZAJIŠTĚNÍ BANKOMATU NA NÁMĚSTÍ NEBO V TĚSNÉ BLÍZKOSTI"}]
[null,null,null,null,null,null,null,"Zpět na seznam akčního plánu"]
["Datum","Popis průběhu"]
[null,"V rámci studie na využití \"'Staré školy\" dostali architekti zadání zapracovat umístění bankomatu do tohoto projektu"]
["12/2020","V projektové dokumentaci projektu \"Komunitní centrum Stará škola\" je bankomat zahrnut "]
["9/2022","V projektu zapracován. Místnost připravena, avšak není zájem ze strany bank o umístění bankomatu. Osloveny: ČS, KB, ČSOB, AirBank, mBank"]

{"sheet":"PanelyHorecka","index":85,"n_rows":5,"n_cols":8,"rows_kept":5,"cut":false,"hidden":true,"merged":[[0,0,0,7],[3,1,3,6],[2,1,2,6],[4,1,4,6]]}
["POŘÍZENÍ INFORMATIVNÍCH PANELU NA PARKOVIŠTĚ NA HOREČCE - INFORMACE PRO TURISTY"]
[null,null,null,null,null,null,null,"Zpět na seznam akčního plánu"]
["Datum","Popis průběhu"]
["4/2020","Z důvodu ek.situace spojené s výskytem COVID-19 a poklesu příjmu ze sdílených daní, prozatím pozastaveno."]
["9/2022","Vzhledem k ek.situaci spojené s Covidem, válkou na Ukrajině a nárůstu cen energií odloženo."]

{"sheet":"PlanAkci","index":86,"n_rows":3,"n_cols":8,"rows_kept":3,"cut":false,"hidden":true,"merged":[[0,0,0,7],[3,1,3,7],[2,1,2,7],[4,1,4,7]]}
["x"]
[null,null,null,null,null,null,null,"Zpět na seznam akčního plánu"]
["Datum","Popis průběhu"]

{"sheet":"VyuzitiInterPrvku","index":87,"n_rows":4,"n_cols":8,"rows_kept":4,"cut":false,"hidden":true,"merged":[[0,0,0,7],[3,1,3,6]]}
["VYUŽITÍ INTERAKTIVNÍCH PRVKŮ VE VÝSTAVNICTVÍ"]
[null,null,null,null,null,null,null,"Zpět na seznam akčního plánu"]
["Datum","Popis průběhu"]
["9/2022","Vzhledem k ekonomické situaci spojené s Covidem, válkou na Ukajině a nárůstu energií odloženo."]

{"sheet":"ZajisteniExpo","index":88,"n_rows":8,"n_cols":8,"rows_kept":8,"cut":false,"hidden":true,"merged":[[8,1,8,7],[7,1,7,7],[0,0,0,7],[3,1,3,7],[4,1,4,7],[2,1,2,7],[6,1,6,7],[5,1,5,7]]}
["ZAJIŠTĚNÍ PROMĚNNÉ EXPOZICE K HISTORII MĚSTA"]
[null,null,null,null,null,null,null,"Zpět na seznam akčního plánu"]
["Datum","Popis průběhu"]
["8/2019","Pořízeny 4 ks výstavních vitrín - náklady 55 tis.Kč"]
["8/2019","V MNJ existuje obrovský depozitář věnovaný Štramberku. S ředitelkou Muzea Novojičínska paní Dvořáčkovou dohodnuto, že cca každých 6 měsíců budou obměňovat výstavní expozici v 1. patře MZB."]
["9/2019","13.09. vernisáž výstavy k 660 letům města - \"Štramberk v proměnách času\" (od 9/2019-3/2020)"]
[2020,"Plánováno pořízení závěsného systému pro expozici v 1.patře věnovanou historii Štramberka - z důvodu ek.situaci spojené s pandemií a poklesem příjmů ze sdílených daní zatím vyškrtnuto z rozpočtu."]
["12/2020","Pořízen závěsný systém pro expozici 1. patra"]

{"sheet":"PorizovaniVidei","index":89,"n_rows":3,"n_cols":8,"rows_kept":3,"cut":false,"hidden":true,"merged":[[0,0,0,8],[3,1,3,6],[2,1,2,6],[4,1,4,6]]}
["POŘIZOVÁNÍ VIDEOZÁZNAMŮ Z KULTURNÍCH AKCÍ A NÁSLEDNÁ PREZENTACE NA WEBOVÝCH STRÁNKÁCH MĚSTA"]
[null,null,null,null,null,null,null,"Zpět na seznam akčního plánu"]
["Datum","Popis průběhu"]

{"sheet":"PasportizaceMobiliare","index":90,"n_rows":8,"n_cols":8,"rows_kept":8,"cut":false,"hidden":true,"merged":[[7,1,7,5],[0,0,0,7],[3,1,3,5],[2,1,2,5],[4,1,4,5],[6,1,6,5],[5,1,5,5]]}
["PASPORTIZACE MOBILIÁŘE, VEŘEJNÉHO OSVĚTLENÍ, KOMUNIKACÍ A CHODNÍKŮ"]
[null,null,null,null,null,null,null,"Zpět na seznam akčního plánu"]
["Datum","Popis průběhu"]
[null,"Byla podána žádost o dotace (v 2019). Dotace nebyla schválena"]
["5/2021","V souvislosti se záměrem přihlásit se do  výzvy na obnovu VO bude zpracován pasport VO firmou Lamberga"]
["11/2021","V rámci analýzy EKO-KOMU a zavedení QR kódů pasportizovány místa na tříděný odpad a zavedena evidenci odpadových nádob občanů a podnikatelů v systému ECONIT"]
["12/2021","Zpracován pasport VO pro účely žádosti o dotaci"]
["9/2022","Paspot zeleně v realizaci, dokončení do října 2022"]

{"sheet":"VzhledDokumentu","index":91,"n_rows":4,"n_cols":8,"rows_kept":4,"cut":false,"hidden":true,"merged":[[0,0,0,13],[3,1,3,6],[2,1,2,6]]}
["JEDNOTNÝ VZHLED DOKUMENTŮ MĚSTA A MĚSTSKÉHO ÚŘADU - ŠABLONY DLE UPRAVENÉHO GRAFICKÉHO MANUÁLU (VČETNĚ RAZÍTEK, VIZITEK, INF. TABULÍ)"]
[null,null,null,null,null,null,null,"Zpět na seznam akčního plánu"]
["Datum","Popis průběhu"]
["5/2020","Postupně realizováno - všechny nové vyhlášky i nařízení jsou již zpracovány podle grafického manuálu. Připraven i vzor pro korespondenci (dopisy MÚ). "]

{"sheet":"FormPortalObcana","index":92,"n_rows":8,"n_cols":8,"rows_kept":8,"cut":false,"hidden":true,"merged":[[7,1,7,6],[6,1,6,6],[0,0,0,7],[2,1,2,6],[3,1,3,6],[4,1,4,6],[5,1,5,6]]}
["ROZŠÍŘENÍ POČTU ON-LINE FORMULÁŘŮ NA PORTALU OBČANA"]
[null,null,null,null,null,null,null,"Zpět na seznam akčního plánu"]
["Datum","Popis průběhu"]
[null,"Dotace nebyla schválena"]
["5/2021","Portál občana rozšířen o on-line formuláře: žádost o poskytnutí informace dle zákona č. 106/1999, žádost o povolení kácení dřevin, zábor veřejného prostranství"]
["6-7/2021","Plánované další rozšíření on-line formulářů: žádost o abonentní kartu, žádost o rezidentní kartu, žádost o pronájem obecního bytu, oznámení o změně počtu osob v obecním bytě, žádost o potvrzení bezdlužnosti, žádost o poskytnutí příspěvku z MPR, ohlášení k MP z pobytu, vyúčtování MP z pobytu, žádost o vrácení přeplatku za psa"]
["11/2021","Přidány nové on-line formuláře: žádost o abonentní kartu, žádost o rezidentní kartu, žádost o pronájem obecního bytu, žádost o potvrzení bezdlužnosti, oznámení o změně počtu osob obecním bytě, žádost o povolení kácení dřevin rostoucí mimo les, žádost o poskytnutí informací podle 106/1999, žádost o prodloužení nájemní smlouvy, žádost o převedení poplatníku na 1 plátce"]
["6/2022","V 6/2022 jsme spustili další službu tzv. platební portál, který nevyžaduje registraci v Portálu občana"]

{"sheet":"NovyWeb","index":93,"n_rows":4,"n_cols":8,"rows_kept":4,"cut":false,"hidden":true,"merged":[[0,0,0,7],[3,1,3,7],[2,1,2,7]]}
[{"$f":"UPPER(\"nové webové stránky města (www.stramberk.cz)\")","v":"NOVÉ WEBOVÉ STRÁNKY MĚSTA (WWW.STRAMBERK.CZ)"}]
[null,null,null,null,null,null,null,"Zpět na seznam akčního plánu"]
["Datum","Popis průběhu"]
["20.09.2019","Spuštěny nové webové stránky města (www.stramberk.cz). Zpracovatelem společnost Galileo Corporation. Grafika vychází z nového grafického manuálu. Návrh stránek konzultován i s odbornou veřejností - A. Goršanovou, D. Davidem. Byl osloven i p. Baďura, bohužel neměl časový prostor."]

{"sheet":"OnlineSmlouvy","index":94,"n_rows":5,"n_cols":8,"rows_kept":5,"cut":false,"hidden":true,"merged":[[0,0,0,9],[3,1,3,6],[2,1,2,6],[4,1,4,6]]}
["ON-LINE SMLOUVY NA PORTÁLU OBČANA - ZVEŘEJŇOVÁNÍ SMLUV (VÝJMA NÁJEMNÍCH SMLUV NA PRONÁJEM BYTŮ)"]
[null,null,null,null,null,null,null,"Zpět na seznam akčního plánu"]
["Datum","Popis průběhu"]
[null,"Dotace nebyla schválena"]
["9/2022","Pozastaveno z důvodu ek.situace."]

{"sheet":"WebAplikace","index":95,"n_rows":6,"n_cols":8,"rows_kept":6,"cut":false,"hidden":true,"merged":[[2,1,2,7],[0,0,0,9],[3,1,3,7],[4,1,4,7],[5,1,5,7]]}
[{"$f":"UPPER(\"mobilní a webová aplikace - hlášení nedostatků \")","v":"MOBILNÍ A WEBOVÁ APLIKACE - HLÁŠENÍ NEDOSTATKŮ "}]
[null,null,null,null,null,null,null,"Zpět na seznam akčního plánu"]
["Datum","Popis průběhu"]
["12/2018","Zprovozněna na Portále občana tzv. ePodání (webová aplikace) - možno zasílat podněty, nedostatky a připojit různé typy příloh (fotografie, PDF, XLS, DOC …). Takto zaslaný podnět se automaticky zaznamená do Podacího deníku (Spisové služby) úřadu, dostane číslo jednací a autorovi je zasláno e-mailem potvrzení o převzetí zprávy i s kódem, kterým si je možné ověřit, kdo dostal podnět přidělen a v jaké fázi se nachází."]
["5/2020","Zpracovatel nových webových stránek - Galileo - nabízí webovou aplikaci - Hlášení závad za cenu 6,5 tis.Kč bez DPH. Plánováno pořídit v létě 2020"]
["12/2020","Aplikace Hlášení závad na webu města spuštěna 8/2020"]

{"sheet":"ElektronickeHlasovani","index":96,"n_rows":5,"n_cols":8,"rows_kept":5,"cut":false,"hidden":true,"merged":[[0,0,0,7],[2,1,2,7],[3,1,3,7],[4,1,4,7]]}
["ELEKTRONICKÉ HLASOVÁNÍ V ORGÁNECH MĚSTA - RADA MĚSTA, ZASTUPITELSTVO"]
[null,null,null,null,null,null,null,"Zpět na seznam akčního plánu"]
["Datum","Popis průběhu"]
["5/2019","Pořízena licence na modul \"e-Hlasování\". Zatím využíváno na RM. Aktuálně se testuje wifi připojení sálu KD pro použití k zasedání ZM - předpoklad investice do kvalitnější wifi."]
["9/2022","Využití el.hlasování v ZM závislé na kvalitě připojení k internetu. Při aktuální kvalitě připojení (časté výpadky) není pro 17 lidí (15 zastupitelů, zapisovatelku a tajemníka) možné. "]